bitfinex/quotes_ETHUSD_20220309
["timestamp","ask_amount","ask_price","bid_price","bid_amount"]
[1646857852814,0.84291,2715.0,2714.8,0.07619329]
[1646857853016,0.84291,2715.0,2714.8,0.00143265]
[1646857853463,0.84291,2715.0,2714.8,0.08982229]
[1646857853669,0.84291,2715.0,2714.8,0.00143265]
[1646857853865,0.84291,2715.0,2714.8,0.07581566]
[1646857854065,0.84291,2715.0,2714.8,0.00143265]
[1646857854266,0.84291,2715.0,2714.8,0.07713361]
[1646857854467,0.84291,2715.0,2714.8,0.00143265]
[1646857854667,0.84291,2715.0,2714.8,0.0877132]
[1646857855067,0.84291,2715.0,2714.7,0.00143752]
[1646857855369,0.84291,2715.0,2714.8,0.07544378]
[1646857855568,0.84291,2715.0,2714.7,0.00143752]
[1646857855768,0.84291,2715.0,2714.8,0.08003665]
[1646857856173,0.84291,2715.0,2714.7,0.00143752]
[1646857856368,0.84291,2715.0,2714.7,1.53253904]
[1646857856569,0.84291,2715.0,2714.8,0.08917739]
[1646857856970,0.84291,2715.0,2714.7,0.00143752]
[1646857857224,0.84291,2715.0,2714.7,1.53256583]
[1646857857414,3.5,2714.9,2714.7,0.08588744]
[1646857857615,3.5,2714.9,2714.7,0.00143752]
[1646857857814,4.5,2714.9,2714.7,0.00143752]
[1646857858013,3.5,2714.8,2714.7,1.62207956]
[1646857858318,4.5,2714.8,2714.7,1.62207956]
[1646857858521,2.0522575,2714.8,2714.7,1.62207956]
[1646857858723,1.0522575,2714.8,2714.7,1.62207956]
[1646857859319,1.0522575,2714.8,2714.7,0.09090151]
[1646857859618,2.0522575,2714.8,2714.7,1.62210538]
[1646857859819,2.0522575,2714.8,2714.7,1.53264139]
[1646857860218,2.0522575,2714.8,2714.7,1.61949657]
[1646857860421,2.0522575,2714.8,2714.7,0.00143752]
[1646857860620,1.3,2714.9,2714.7,0.00143752]
[1646857860822,0.92144,2714.9,2714.7,0.00143752]
[1646857861063,0.92144,2714.9,2714.7,1.61616212]
[1646857861265,0.92144,2714.9,2714.7,0.08491386]
[1646857861464,3.5,2714.8,2714.7,0.00143752]
[1646857861663,3.5,2714.8,2714.6,1.53128311]
[1646857861664,6.34331,2714.8,2714.6,1.53128311]
[1646857861865,5.2059479,2714.8,2714.4,0.029168]
[1646857862063,0.92161,2714.7,2714.5,1.53127895]
[1646857862960,1.8432,2714.7,2714.5,1.53127895]
[1646857864169,1.8432,2714.7,2714.6,0.08762405]
[1646857864369,1.8432,2714.7,2714.6,1.53127895]
[1646857864819,1.9214149,2715.0,2714.6,1.53127895]
[1646857864820,1.0,2715.0,2714.8,1.63304124]
[1646857865018,1.0,2715.0,2714.9,5.06044695]
[1646857865217,1.0,2715.0,2714.9,1.56044695]
[1646857865617,0.97546663,2715.0,2714.9,1.56044695]
[1646857866019,2.80521559,2715.6,2714.9,1.53127895]
[1646857866020,0.96281559,2715.6,2714.9,1.53127895]
[1646857866215,1.8427308,2715.5,2714.9,1.56044695]
[1646857866419,1.8427308,2715.5,2715.0,1.53127895]
[1646857866615,3.14219743,2715.5,2715.0,1.53127895]
[1646857866816,0.92127,2715.2,2715.0,1.53127895]
[1646857867016,1.842752,2715.2,2715.0,1.53127895]
[1646857867515,0.94259976,2715.1,2715.0,1.53127895]
[1646857867718,1.24259976,2715.1,2714.8,1.63304124]
[1646857868118,2.24206639,2715.1,2714.8,1.63304124]
[1646857868572,2.68306639,2715.1,2714.8,1.63304124]
[1646857868772,3.68306639,2715.1,2714.8,1.63304124]
[1646857870777,3.68306639,2715.1,2714.9,1.5311617]
[1646857872431,2.74046663,2715.1,2714.9,1.5311617]
[1646857872732,2.74046663,2715.1,2714.8,1.63304124]
[1646857872733,0.741,2715.1,2714.8,1.63304124]
[1646857872934,1.741,2715.1,2714.9,1.53114521]
[1646857873333,0.741,2715.1,2714.9,1.53114521]
[1646857873535,1.22983427,2715.0,2714.9,1.53114521]
[1646857873738,1.22983427,2715.0,2714.8,1.63304124]
[1646857873938,2.7646779,2714.9,2714.8,1.63304124]
[1646857874142,2.7646779,2714.9,2714.8,3.16425129]
[1646857874340,3.7646779,2714.9,2714.8,3.16425129]
[1646857874539,3.0646779,2714.9,2714.8,3.25220151]
[1646857874741,4.0646779,2714.9,2714.8,3.25220151]
[1646857874943,3.0646779,2714.9,2714.8,3.25220151]
[1646857875144,4.0646779,2714.9,2714.8,3.25220151]
[1646857875347,2.22155,2714.9,2714.8,3.25220151]
[1646857875544,1.92155,2714.9,2714.8,3.25220151]
[1646857875743,0.92155,2714.9,2714.8,3.25220151]
[1646857876566,0.92155,2714.9,2714.8,3.28136951]
[1646857878465,0.92155,2714.9,2714.8,3.25220151]
[1646857879814,0.92155,2714.9,2714.8,3.25361634]
[1646857880016,0.92155,2714.9,2714.8,3.16566612]
[1646857882018,2.6862131,2715.0,2714.8,3.16566612]
[1646857882218,2.6862131,2715.0,2714.9,1.53121005]
[1646857882418,3.64188659,2715.0,2714.9,1.53121005]
[1646857882620,4.64188659,2715.0,2714.9,1.53121005]
[1646857883667,3.6862131,2715.0,2714.9,1.53121005]
[1646857885866,2.6862131,2715.0,2714.9,1.53121005]
[1646857886668,1.6862131,2715.0,2714.9,1.53121005]
[1646857886868,2.6862131,2715.0,2714.9,1.53121005]
[1646857887073,1.6862131,2715.0,2714.9,1.53121005]
[1646857887323,3.6077762,2715.0,2714.9,1.53121005]
[1646857887524,2.6077762,2715.0,2714.9,1.53121005]
[1646857887722,3.6077762,2715.0,2714.9,1.53121005]
[1646857887923,2.6077762,2715.0,2714.9,1.53121005]
[1646857888126,3.6077762,2715.0,2714.9,1.53121005]
[1646857890134,3.6077762,2715.0,2714.9,1.60831107]
[1646857890534,3.9077762,2715.0,2714.9,1.60831107]
[1646857891165,3.6077762,2715.0,2714.9,1.60831107]
[1646857891366,0.6862131,2715.0,2714.9,1.53121005]
[1646857896718,3.1429855,2715.1,2715.0,0.3137869]
[1646857896918,2.1429855,2715.1,2715.0,1.84499695]
[1646857897116,3.1429855,2715.1,2715.0,1.84499695]
[1646857897318,1.8429855,2715.1,2715.0,1.84499695]
[1646857901770,0.92154,2715.1,2715.0,1.91400791]
[1646857905723,0.92154,2715.1,2715.0,0.3137869]
[1646857905965,2.22100663,2715.1,2715.0,0.3137869]
[1646857906164,2.66200663,2715.1,2715.0,0.3137869]
[1646857906565,2.66200663,2715.1,2714.8,1.66222407]
[1646857906566,5.5,2715.0,2714.8,1.66222407]
[1646857906768,5.5,2715.0,2714.8,1.63304124]
[1646857906769,0.441,2714.9,2714.8,1.63304124]
[1646857906967,1.44046663,2714.9,2714.8,1.63304124]
[1646857907168,6.42178,2714.8,2714.5,0.029168]
[1646857907367,0.441,2714.7,2714.6,1.53123921]
[1646857907566,0.99946663,2714.6,2714.4,0.029168]
[1646857907767,1.29946663,2714.6,2714.5,1.53124653]
[1646857907971,1.19316339,2714.6,2714.5,1.53124653]
[1646857908167,1.89263002,2714.6,2714.4,1.53124653]
[1646857908368,8.70644,2714.5,2714.3,0.01468598]
[1646857908572,10.86710663,2714.5,2714.4,1.53128306]
[1646857908772,16.74,2714.4,2713.9,0.029168]
[1646857908971,13.5249288,2714.3,2714.1,0.00367141]
[1646857909174,5.5,2714.0,2713.3,0.86918849]
[1646857909372,1.21752156,2713.6,2713.2,0.86822849]
[1646857909569,3.28298752,2713.7,2713.6,0.41614742]
[1646857909820,5.5,2713.6,2713.3,0.08195271]
[1646857910021,0.441,2713.5,2713.3,0.08195271]
[1646857910221,0.92212,2713.4,2713.1,0.26130908]
[1646857910425,0.90160713,2713.2,2713.1,0.26130908]
[1646857910625,1.90107376,2713.2,2713.1,0.07710908]
[1646857910818,1.90107376,2713.2,2712.9,0.09831548]
[1646857911121,1.92171663,2713.1,2712.9,0.09831548]
[1646857911318,2.84394763,2713.1,2712.9,0.09831548]
[1646857911521,3.76615763,2713.1,2712.9,0.09831548]
[1646857911719,4.76615763,2713.1,2712.9,0.09831548]
[1646857912322,4.76615763,2713.1,2712.4,0.69098721]
[1646857912323,5.5,2712.9,2712.4,0.69098721]
[1646857912522,1.41083973,2712.8,2712.4,0.00599872]
[1646857912722,0.0493708,2712.7,2712.5,0.01551897]
[1646857912920,5.0,2712.5,2712.4,0.00599872]
[1646857913125,5.99946663,2712.5,2712.4,0.00599872]
[1646857913322,8.05072892,2712.5,2712.4,0.00599872]
[1646857913876,8.05072892,2712.5,2711.5,0.68488819]
[1646857913877,5.5,2712.2,2711.5,0.68488819]
[1646857914075,0.92287,2711.5,2711.0,0.68495511]
[1646857914275,0.92287,2711.5,2710.2,0.06273712]
[1646857914276,0.05300157,2711.2,2710.2,0.06273712]
[1646857914481,0.05300157,2711.2,2710.4,0.04696504]
[1646857914482,0.99946663,2711.1,2710.4,0.04696504]
[1646857914773,0.99946663,2710.6,2710.4,0.02585216]
[1646857914971,0.99946663,2710.6,2709.7,1.49845349]
[1646857914972,4.0,2710.4,2710.2,0.68511259]
[1646857915173,0.441,2710.5,2710.1,0.00378368]
[1646857915174,0.04903477,2710.5,2710.1,0.00378368]
[1646857915372,0.3,2710.5,2710.2,0.0115116]
[1646857915775,3.06947,2710.6,2710.2,0.0115116]
[1646857915975,3.11906797,2710.6,2710.2,0.0115116]
[1646857916175,4.11906797,2710.6,2710.2,0.0115116]
[1646857916372,3.11906797,2710.6,2710.2,0.0115116]
[1646857916573,4.11906797,2710.6,2710.2,0.0115116]
[1646857916774,0.92311,2710.5,2710.2,0.0115116]
[1646857917423,0.92311,2710.5,2710.2,0.01529528]
[1646857917622,3.7694092,2710.5,2710.2,0.01942481]
[1646857917823,4.7694092,2710.5,2710.2,0.01942481]
[1646857918021,0.05449016,2710.4,2710.2,0.01942481]
[1646857918223,0.05449016,2710.4,2709.1,0.03754564]
[1646857918224,0.83242395,2709.5,2709.1,0.03754564]
[1646857918426,0.92302,2710.2,2710.1,2.45272486]
[1646857919426,5.5,2710.1,2709.8,0.0165207]
[1646857919627,0.92334,2709.9,2709.6,0.00819536]
[1646857919827,1.92334,2709.9,2709.6,0.00819536]
[1646857920027,3.9544314,2710.0,2709.6,0.00819536]
[1646857920028,1.1844,2710.0,2709.6,0.00819536]
[1646857920229,0.1844,2710.0,2709.6,0.00819536]
[1646857920426,3.45274987,2710.3,2709.6,0.03878592]
[1646857920427,4.78772043,2710.2,2709.6,0.03878592]
[1646857920627,4.52881845,2710.1,2709.6,0.03878592]
[1646857920828,0.1844,2710.0,2709.6,0.03878592]
[1646857921080,3.52881845,2710.1,2709.6,0.12383795]
[1646857922175,3.52881845,2710.1,2709.9,0.98520309]
[1646857922377,3.52881845,2710.1,2709.9,1.35330309]
[1646857922574,3.52881845,2710.1,2710.0,0.07570333]
[1646857923373,3.52881845,2710.1,2710.0,0.0616353]
[1646857923582,0.00412696,2710.4,2710.0,0.09222586]
[1646857924381,0.00412696,2710.4,2710.0,0.04222586]
[1646857924577,0.066637,2710.9,2710.0,0.04222586]
[1646857924817,0.00412711,2710.4,2710.0,0.04222586]
[1646857925220,0.00412711,2710.4,2710.3,0.029168]
[1646857925623,0.00412711,2710.4,2710.3,0.05975856]
[1646857925918,2.63696451,2711.1,2710.5,0.3681]
[1646857925919,0.1844,2711.1,2710.5,0.3681]
[1646857926224,0.1844,2711.1,2711.0,1.0]
[1646857926420,1.10713,2711.1,2711.0,1.0]
[1646857926618,0.07527591,2711.4,2711.0,1.00756736]
[1646857926619,0.1844,2711.3,2711.0,1.00756736]
[1646857927220,0.00393814,2711.2,2711.0,1.00756736]
[1646857927620,0.07172313,2711.2,2711.0,1.00756736]
[1646857928121,0.1844,2711.4,2711.0,1.00756736]
[1646857928322,0.00393812,2711.2,2711.0,1.00756736]
[1646857929170,1.07427693,2711.2,2711.0,1.00756736]
[1646857929369,0.0621636,2711.1,2711.0,1.00756736]
[1646857929571,0.06372285,2711.2,2711.0,1.00756736]
[1646857929770,0.06766097,2711.2,2711.0,1.00756736]
[1646857929971,0.06291401,2711.1,2711.0,0.99506736]
[1646857930273,0.98562401,2711.1,2711.0,0.99506736]
[1646857931878,1.98562401,2711.1,2711.0,0.99506736]
[1646857932916,0.98562401,2711.1,2711.0,0.99506736]
[1646857933927,0.06291401,2711.1,2711.0,0.99506736]
[1646857934320,0.00389854,2711.2,2711.0,0.99506736]
[1646857934520,0.00389854,2711.2,2711.1,0.029168]
[1646857935520,0.92264,2711.4,2711.1,0.029168]
[1646857935718,0.92264,2711.4,2711.1,0.03673536]
[1646857935719,0.00389849,2711.3,2711.1,0.03673536]
[1646857936367,3.56108136,2711.3,2711.1,0.00756736]
[1646857936572,0.05315418,2711.2,2711.1,0.00756736]
[1646857936767,1.05315418,2711.2,2711.1,0.00756736]
[1646857938266,4.55315418,2711.2,2711.1,0.00756736]
[1646857938671,5.55315418,2711.2,2711.1,0.00756736]
[1646857938872,2.05315418,2711.2,2711.1,0.00756736]
[1646857939272,1.05315418,2711.2,2711.1,0.00756736]
[1646857939473,0.05315418,2711.2,2711.1,0.00756736]
[1646857939918,3.77251102,2711.3,2711.1,0.03673536]
[1646857939919,2.8256652,2711.3,2711.1,0.03673536]
[1646857940318,2.82195418,2711.3,2711.1,0.03673536]
[1646857940720,2.8256652,2711.3,2711.1,0.03673536]
[1646857941119,1.8256652,2711.3,2711.1,0.03673536]
[1646857941319,4.6713052,2711.3,2711.1,0.03673536]
[1646857941519,3.66759418,2711.3,2711.1,0.03673536]
[1646857941725,4.67127734,2711.3,2711.1,0.03673536]
[1646857942121,0.00368316,2711.3,2711.1,0.03673536]
[1646857942321,4.19340611,2711.7,2711.3,0.00736632]
[1646857942822,4.19340611,2711.7,2711.4,0.029168]
[1646857943667,5.19340611,2711.7,2711.4,0.029168]
[1646857945369,5.19753261,2711.7,2711.4,0.029168]
[1646857946369,5.19340611,2711.7,2711.4,0.029168]
[1646857946570,5.19753261,2711.7,2711.4,0.029168]
[1646857947414,5.19340611,2711.7,2711.4,0.029168]
[1646857947815,5.19753261,2711.7,2711.4,0.029168]
[1646857948018,5.19753261,2711.7,2711.5,1.53264936]
[1646857948417,5.19753261,2711.7,2711.4,0.029168]
[1646857948621,5.19753261,2711.7,2711.3,0.04410168]
[1646857948622,0.0576485,2711.6,2711.3,0.04410168]
[1646857948820,0.92278,2711.5,2711.3,0.04410168]
[1646857949019,0.92278,2711.5,2711.3,0.01493368]
[1646857949622,1.84546,2711.5,2711.3,0.01493368]
[1646857949820,2.84546,2711.5,2711.3,0.01493368]
[1646857950021,3.14546,2711.5,2711.3,0.01493368]
[1646857950224,4.1494473,2711.5,2711.3,0.01493368]
[1646857950522,4.0722273,2711.5,2711.3,0.01493368]
[1646857950724,5.0722273,2711.5,2711.3,0.01493368]
[1646857951187,0.441,2711.4,2711.3,0.01493368]
[1646857951587,1.441,2711.4,2711.3,0.01493368]
[1646857952288,1.441,2711.4,2711.3,1.54795588]
[1646857952592,1.49216261,2711.4,2711.3,1.54795588]
[1646857954195,0.49216261,2711.4,2711.3,1.54795588]
[1646857957021,0.441,2711.4,2711.3,1.54795588]
[1646857957923,0.4849582,2711.4,2711.3,1.54795588]
[1646857958322,12.7249582,2711.4,2711.3,1.54795588]
[1646857958571,1.4849582,2711.4,2711.3,0.01513472]
[1646857958773,2.4849582,2711.4,2711.3,0.01513472]
[1646857958973,1.4849582,2711.4,2711.3,0.01513472]
[1646857960073,0.441,2711.4,2711.3,0.01513472]
[1646857961074,3.44547,2711.5,2711.3,4.18891904]
[1646857961075,1.84927158,2711.5,2711.3,4.18891904]
[1646857961278,1.84927158,2711.5,2711.4,3.5]
[1646857961279,0.00380158,2711.5,2711.4,3.5]
[1646857961473,0.00380158,2711.5,2711.4,4.42999357]
[1646857961674,0.00380158,2711.5,2711.4,3.897268]
[1646857962072,9.73152,2712.4,2711.4,0.397268]
[1646857962073,4.55552,2712.4,2711.4,0.397268]
[1646857962322,5.93048949,2712.5,2711.8,0.029168]
[1646857962535,5.93048949,2712.5,2712.1,0.029168]
[1646857962536,4.08588949,2712.5,2712.1,0.029168]
[1646857962724,4.08588949,2712.5,2712.3,0.029168]
[1646857963727,4.0896906,2712.5,2712.3,0.029168]
[1646857964428,0.3,2712.6,2712.3,0.029168]
[1646857964628,0.3,2712.6,2712.3,1.26345936]
[1646857964829,0.00367722,2712.5,2712.4,0.029168]
[1646857965727,0.92219,2712.8,2712.4,0.029168]
[1646857965971,0.0036772,2712.6,2712.4,0.029168]
[1646857966571,0.92226,2712.5,2712.3,0.029168]
[1646857966873,0.92226,2712.5,2712.0,1.029168]
[1646857967072,1.441,2712.4,2712.0,1.029168]
[1646857967470,2.8451,2712.3,2712.0,1.029168]
[1646857967675,0.92254,2712.2,2712.0,1.029168]
[1646857967870,0.92254,2712.2,2712.0,1.0]
[1646857968072,1.84507,2712.2,2712.0,1.0]
[1646857968275,0.492771,2712.1,2712.0,1.0]
[1646857968474,1.492771,2712.1,2712.0,1.0]
[1646857969474,0.492771,2712.1,2712.0,1.0]
[1646857969918,1.492771,2712.1,2712.0,1.0]
[1646857970324,0.492771,2712.1,2712.0,1.0]
[1646857970729,3.44507,2712.2,2712.0,1.0]
[1646857970924,1.440771,2712.1,2712.0,1.0]
[1646857971523,4.940771,2712.1,2711.8,0.10389122]
[1646857971722,5.940771,2712.1,2711.8,0.029168]
[1646857971924,0.999771,2711.9,2711.8,0.029168]
[1646857972122,2.663481,2711.9,2711.6,0.029168]
[1646857972323,0.92272,2711.8,2711.6,0.029168]
[1646857972525,1.440771,2711.7,2711.6,0.029168]
[1646857972727,1.740771,2711.7,2711.6,0.029168]
[1646857972930,0.741,2711.7,2711.6,0.029168]
[1646857975975,0.92264,2711.6,2711.3,0.01513472]
[1646857976173,0.92264,2711.6,2711.4,0.029168]
[1646857978419,1.84531,2711.6,2711.4,0.029168]
[1646857978622,1.84531,2711.6,2711.5,1.53265893]
[1646857978823,0.92264,2711.6,2711.5,1.64092977]
[1646857979123,4.55769,2712.2,2711.6,0.07408529]
[1646857979323,5.54055883,2712.4,2711.8,0.08698788]
[1646857979324,1.6505,2712.4,2711.8,0.08698788]
[1646857979522,1.56358803,2712.5,2712.0,0.11082154]
[1646857979722,1.56358803,2712.5,2712.1,0.029168]
[1646857979723,0.92243,2712.4,2712.1,0.029168]
[1646857979926,2.88053675,2712.2,2712.0,0.029168]
[1646857980123,3.32153675,2712.2,2711.8,0.029168]
[1646857980321,0.1842,2712.1,2711.7,0.10233076]
[1646857980523,0.999771,2712.0,2711.7,0.10233076]
[1646857980971,4.72268,2712.1,2712.0,0.000229]
[1646857981170,5.72268,2712.1,2712.0,0.000229]
[1646857981371,5.72268,2712.1,2711.8,0.029168]
[1646857981372,5.5,2712.0,2711.8,0.029168]
[1646857981571,3.941,2711.9,2711.7,0.07316276]
[1646857981774,3.5,2711.8,2711.7,0.07316276]
[1646857981971,4.941,2711.8,2711.7,0.07316276]
[1646857982371,2.441,2711.8,2711.7,0.07316276]
[1646857982772,1.441,2711.8,2711.7,0.07316276]
[1646857983377,2.36375,2711.8,2711.7,0.07316276]
[1646857983777,5.86375,2711.8,2711.7,0.07316276]
[1646857984277,6.86375,2711.8,2711.7,0.07316276]
[1646857984733,2.36375,2711.8,2711.7,0.07316276]
[1646857985123,1.36375,2711.8,2711.7,0.07316276]
[1646857987123,1.36375,2711.8,2711.7,1.60583032]
[1646857988325,1.36375,2711.8,2711.7,0.07316276]
[1646857989175,0.36375,2711.8,2711.7,0.07316276]
[1646857989576,1.36375,2711.8,2711.7,0.07316276]
[1646857989775,4.86375,2711.8,2711.7,0.07316276]
[1646857989980,5.30475,2711.8,2711.7,0.07316276]
[1646857990175,2.80475,2711.8,2711.7,0.07316276]
[1646857990574,1.80475,2711.8,2711.7,0.07316276]
[1646857990779,6.30475,2711.8,2711.7,0.07316276]
[1646857990982,5.30475,2711.8,2711.7,0.07316276]
[1646857991180,6.30475,2711.8,2711.7,0.07316276]
[1646857991378,2.80475,2711.8,2711.7,0.07316276]
[1646857991577,2.36375,2711.8,2711.7,0.07316276]
[1646857991777,1.3,2711.9,2711.7,1.60599655]
[1646857991978,1.3,2711.9,2711.8,0.07718466]
[1646857992230,0.3,2711.9,2711.8,0.07718466]
[1646857992621,1.22243,2712.1,2711.8,0.07718466]
[1646857993322,1.0,2712.0,2711.8,0.07718466]
[1646857994727,0.75437701,2712.0,2711.8,0.07718466]
[1646857994928,2.52243,2712.1,2711.8,0.07718466]
[1646857995130,1.22243,2712.1,2711.8,0.07718466]
[1646857995328,2.22243,2712.1,2711.8,0.07718466]
[1646857995529,1.22243,2712.1,2711.8,0.07718466]
[1646857995730,0.92243,2712.1,2711.9,1.56165132]
[1646857995972,0.92244,2712.4,2712.0,1.53244062]
[1646857995973,0.92233,2712.4,2712.0,1.53244062]
[1646857996172,0.92233,2712.4,2712.1,0.07744678]
[1646857996378,0.92233,2712.4,2712.2,0.029168]
[1646857996573,0.92233,2712.4,2712.3,0.029168]
[1646857997974,1.22233,2712.4,2712.0,0.029168]
[1646857998177,1.84501,2712.3,2712.1,0.029168]
[1646857998380,6.78538701,2712.3,2711.7,0.08586592]
[1646857998583,6.78538701,2712.3,2711.8,0.029168]
[1646857998780,1.29937701,2712.2,2711.8,0.029168]
[1646857998984,0.441,2712.1,2711.9,0.029168]
[1646857999185,0.92261,2712.0,2711.8,0.029168]
[1646857999829,0.92261,2712.0,2711.7,0.08586592]
[1646857999830,3.941,2711.9,2711.7,0.08586592]
[1646858000029,0.441,2711.9,2711.7,0.08586592]
[1646858000226,3.5,2711.8,2711.7,0.08586592]
[1646858000426,5.24037701,2711.8,2711.7,0.08586592]
[1646858000630,5.24037701,2711.8,2711.5,0.029168]
[1646858000631,5.5,2711.6,2711.5,0.029168]
[1646858000833,22.69226785,2711.6,2711.5,0.029168]
[1646858001026,11.75226785,2711.6,2711.5,0.029168]
[1646858001226,11.75226785,2711.6,2711.3,0.01513472]
[1646858001227,5.5,2711.5,2711.3,0.01513472]
[1646858001426,0.49447514,2711.4,2711.3,0.01513472]
[1646858001630,1.49385215,2711.4,2711.3,0.01513472]
[1646858001828,1.74037701,2711.4,2711.3,0.01513472]
[1646858002529,2.66325701,2711.4,2710.6,0.09301127]
[1646858002731,10.84604,2711.3,2711.0,1.01776944]
[1646858002929,1.44037701,2711.2,2711.0,0.97859678]
[1646858003129,1.44037701,2711.2,2710.4,0.00096]
[1646858003130,5.5,2711.0,2710.4,0.00096]
[1646858003329,5.5,2711.0,2710.3,0.0230232]
[1646858003330,3.941,2710.9,2710.6,0.01475034]
[1646858003585,0.99937701,2710.7,2710.6,0.01475034]
[1646858003779,1.29937701,2710.7,2710.6,0.01475034]
[1646858004184,1.29937701,2710.7,2710.3,0.0230232]
[1646858004383,1.29937701,2710.7,2710.4,1.53331472]
[1646858004980,1.84618,2710.6,2710.4,1.53331472]
[1646858005183,3.99238,2710.6,2710.4,1.53331472]
[1646858005383,3.06928,2710.6,2710.4,1.53331472]
[1646858005582,4.06928,2710.6,2710.4,1.53331472]
[1646858006384,0.9231,2710.5,2710.4,1.53331472]
[1646858006983,0.9231,2710.5,2710.0,0.0147512]
[1646858006984,5.5,2710.4,2710.0,0.0147512]
[1646858007235,5.34649,2710.3,2710.1,1.53346087]
[1646858007423,3.941,2710.2,2710.0,0.0147512]
[1646858007624,0.99937701,2710.1,2710.0,0.0147512]
[1646858007820,0.99937701,2710.1,2709.7,0.08973679]
[1646858007821,1.44037701,2710.1,2709.7,0.08973679]
[1646858008020,1.44037701,2710.1,2709.8,1.53357874]
[1646858008222,0.44037701,2710.1,2709.8,1.53357874]
[1646858008623,0.44037701,2710.1,2709.6,0.00819536]
[1646858008624,1.92332,2710.0,2709.9,1.53357874]
[1646858008824,2.13410687,2710.0,2709.7,1.53357874]
[1646858009024,2.13410687,2710.0,2709.8,1.53357874]
[1646858009225,2.13410687,2710.0,2709.9,1.53357874]
[1646858009226,1.84654,2710.0,2709.9,1.53357874]
[1646858009429,2.84610687,2710.0,2709.7,1.53357874]
[1646858009623,2.84610687,2710.0,2709.8,1.53357874]
[1646858009624,1.84654,2710.0,2709.8,1.53357874]
[1646858009824,1.84654,2710.0,2709.9,1.53357874]
[1646858010027,1.92326,2710.1,2709.9,1.53357874]
[1646858010226,0.3,2710.3,2710.0,1.53357874]
[1646858010425,1.0,2710.4,2710.1,1.61750812]
[1646858010625,0.3,2710.5,2710.2,1.53357874]
[1646858010825,0.923,2710.5,2710.2,1.53357874]
[1646858011075,1.223,2710.5,2710.2,1.53357874]
[1646858011275,1.223,2710.5,2710.3,1.53357874]
[1646858011474,1.223,2710.5,2710.4,0.07662202]
[1646858011674,1.223,2710.5,2710.2,0.00412762]
[1646858012677,1.223,2710.5,2709.7,0.3681]
[1646858012879,1.223,2710.5,2710.2,0.00412762]
[1646858013684,1.223,2710.5,2709.8,0.01651265]
[1646858013884,1.223,2710.5,2709.9,1.53336374]
[1646858014084,1.223,2710.5,2710.2,0.00412762]
[1646858014919,1.223,2710.5,2709.7,0.07459531]
[1646858015122,1.223,2710.5,2709.9,0.07535521]
[1646858015322,1.223,2710.5,2710.2,0.00412762]
[1646858015624,0.99956687,2710.4,2710.2,0.00412762]
[1646858015824,0.99956687,2710.3,2710.2,0.00412762]
[1646858016022,1.29956687,2710.3,2710.2,0.00412762]
[1646858016223,1.29956687,2710.3,2709.6,0.08011952]
[1646858016424,0.92323,2710.1,2709.8,0.01596783]
[1646858016724,1.92279687,2710.1,2709.9,1.53348325]
[1646858017526,1.92279687,2710.1,2709.9,0.0039915]
[1646858017728,0.3,2710.0,2709.9,0.0039915]
[1646858017929,0.3,2710.0,2709.6,0.00819536]
[1646858017930,2.46866687,2710.0,2709.6,0.00819536]
[1646858018127,1.84691,2709.9,2709.6,0.00819536]
[1646858018328,5.5,2709.7,2709.5,1.68081631]
[1646858018583,5.5,2709.7,2709.6,0.01639072]
[1646858018584,6.94056687,2709.7,2709.6,0.01639072]
[1646858018880,0.99956687,2709.5,2709.2,0.07096434]
[1646858019078,0.441,2709.4,2709.2,0.10374578]
[1646858019280,1.66456,2709.4,2709.2,0.10374578]
[1646858019479,5.16456,2709.4,2709.2,0.10374578]
[1646858019681,3.5,2709.3,2709.1,0.03754564]
[1646858019884,0.441,2709.2,2709.1,0.12306588]
[1646858020079,1.44056687,2709.2,2709.1,0.12306588]
[1646858020279,1.74056687,2709.2,2709.1,0.12306588]
[1646858020479,1.74056687,2709.2,2709.1,0.03327808]
[1646858020879,4.51159687,2709.2,2709.1,0.03327808]
[1646858021280,5.51159687,2709.2,2709.1,0.03327808]
[1646858022427,5.51159687,2709.2,2709.0,0.03230468]
[1646858022626,5.21159687,2709.2,2709.0,0.03230468]
[1646858022821,4.21203,2709.2,2709.0,0.03230468]
[1646858023021,1.441,2709.2,2709.0,0.03230468]
[1646858023221,0.441,2709.2,2709.0,0.03230468]
[1646858023425,2.22356,2709.3,2709.0,0.03230468]
[1646858023624,1.22356,2709.3,2709.0,0.03642423]
[1646858024633,1.22356,2709.3,2709.0,0.03230468]
[1646858024930,1.22356,2709.3,2709.1,1.53372805]
[1646858026076,0.92356,2709.3,2709.1,1.53784754]
[1646858026274,0.92356,2709.3,2709.1,0.00411949]
[1646858026475,0.92356,2709.3,2709.2,1.53369003]
[1646858026677,0.92356,2709.3,2709.2,1.62141038]
[1646858027480,0.92356,2709.3,2709.2,0.08772035]
[1646858027677,0.92356,2709.3,2709.1,0.00411947]
[1646858028275,0.92356,2709.3,2709.0,0.0307438]
[1646858028477,0.92356,2709.3,2709.1,0.00393421]
[1646858028682,0.99956687,2709.2,2709.1,0.00393421]
[1646858028882,0.28710535,2709.3,2709.1,0.00393421]
[1646858029084,1.0,2709.2,2709.1,0.00393421]
[1646858029282,2.84704,2709.2,2709.1,0.00393421]
[1646858029482,2.84704,2709.2,2709.0,0.0307438]
[1646858029734,3.84704,2709.2,2709.1,0.00393421]
[1646858029923,2.84704,2709.2,2709.1,0.00393421]
[1646858030132,3.84704,2709.2,2709.1,0.00393421]
[1646858030629,3.84704,2709.2,2709.0,0.0307438]
[1646858030829,3.84704,2709.2,2709.0,0.03467803]
[1646858031228,4.28804,2709.2,2709.0,0.03467803]
[1646858031430,4.58804,2709.2,2709.0,0.03467803]
[1646858031630,1.0,2709.1,2709.0,0.03467803]
[1646858031829,1.3,2709.1,2709.0,0.0307438]
[1646858032030,1.52351,2709.1,2709.0,0.03465467]
[1646858032434,1.22351,2709.1,2709.0,0.03465467]
[1646858033029,1.22351,2709.1,2709.0,0.0307438]
[1646858035078,1.22351,2709.1,2709.0,1.56461708]
[1646858035680,1.22351,2709.1,2709.0,0.0307438]
[1646858036086,2.22351,2709.1,2709.0,0.0307438]
[1646858036584,5.72351,2709.1,2709.0,0.0307438]
[1646858036786,7.16451,2709.1,2709.0,0.0307438]
[1646858038853,7.16451,2709.1,2708.9,0.03431021]
[1646858038854,5.5,2709.0,2708.9,0.03431021]
[1646858039154,10.441,2709.0,2708.9,0.0303981]